fUSD/lending_fUSD_20251220
["ID","MTS","AMOUNT","RATE_DAILY","PERIOD"]
[399285711,1766243447156,-1015.2,0.00015616,2]
[399285712,1766243447166,-553.79,0.00015616,2]
[399285713,1766243447178,-151.0,0.00015722,2]
[399285714,1766243447188,-151.0,0.00015722,2]
[399285715,1766243447198,-481.17,0.00015753,2]
[399285716,1766243447208,-481.17,0.00015753,2]
[399285717,1766243447217,-481.17,0.00015753,2]
[399285718,1766243447227,-1052.55,0.00015753,2]
[399285719,1766243447237,-481.17,0.00015753,2]
[399285720,1766243447247,-481.17,0.00015753,2]
[399285721,1766243447257,-481.17,0.00015753,2]
[399285722,1766243447267,-481.17,0.00015753,2]
[399285723,1766243447276,-481.17,0.00015753,2]
[399285724,1766243447287,-481.17,0.00015753,2]
[399285725,1766243447296,-481.17,0.00015753,2]
[399285726,1766243447306,-481.17,0.00015753,2]
[399285727,1766243447316,-481.17,0.00015753,2]
[399285728,1766243447325,-481.17,0.00015753,2]
[399285729,1766243447335,-166.66,0.00015789,2]
[399285730,1766243447345,-166.66,0.00015797,2]
[399285731,1766243447354,-796.19226871,0.00015854,2]
[399285732,1766243447364,-1141.9898376,0.000159,2]
[399285733,1766243447374,-1141.9898376,0.000159,2]
[399285734,1766243447383,-3263.29207984,0.00015981,2]
[399285735,1766243447393,-510.27633362,0.00015999,2]
[399285736,1766243447402,-169995.5741927,0.00016,2]
[399285737,1766243447416,-633.79005472,0.00016,2]
[399285738,1766243447450,-695.29236772,0.00016,2]
[399285739,1766243447462,-9535.13739471,0.00016,2]
[399285740,1766243447478,-954.45988669,0.00016,2]
[399285741,1766243447490,-69223.44878001,0.00016,2]
[399285742,1766243447500,-3072.50111435,0.00016,2]
[399285743,1766243447511,-246.789752,0.00016,2]
[399285744,1766243447520,-151.0,0.00016,2]
[399285745,1766243447530,-151.651523,0.00016,2]
[399285746,1766243447539,-151.0,0.00016,2]
[399285747,1766243447548,-151.0,0.00016,2]
[399285748,1766243447558,-151.0,0.00016,2]
[399285749,1766243447568,-151.0,0.00016,2]
[399285750,1766243447578,-151.0,0.00016,2]
[399285751,1766243447588,-151.0,0.00016,2]
[399285752,1766243447597,-151.0,0.00016,2]
[399285753,1766243447607,-151.0,0.00016,2]
[399285754,1766243447616,-151.0,0.00016,2]
[399285755,1766243447626,-199.19164058,0.00016,2]
[399285756,1766243447635,-188.1771,0.00016,2]
[399285757,1766243447645,-188.1771,0.00016,2]
[399285758,1766243447654,-188.1771,0.00016,2]
[399285759,1766243447664,-188.1771,0.00016,2]
[399285760,1766243447673,-244.707609,0.00016,2]
[399285761,1766243447683,-244.707609,0.00016,2]
[399285762,1766243447692,-244.707609,0.00016,2]
[399285763,1766243447703,-244.707609,0.00016,2]
[399285764,1766243447714,-151.0,0.00016,2]
[399285765,1766243447723,-151.0,0.00016,2]
[399285766,1766243447733,-151.0,0.00016,2]
[399285767,1766243447742,-151.0,0.00016,2]
[399285768,1766243447752,-151.0,0.00016,2]
[399285769,1766243447761,-151.0,0.00016,2]
[399285770,1766243447772,-166.66,0.00016103,2]
[399285771,1766243447782,-168.0,0.00016134,2]
[399285772,1766243447791,-160.47,0.00016169,2]
[399285773,1766243447801,-166.04320436,0.00016191,2]
[399285774,1766243447810,-166.66,0.00016294,2]
[399285775,1766243447827,-346.92554585,0.00016398,2]
[399285776,1766243447840,-702.96466364,0.00016402,2]
[399285777,1766243447849,-2000.0,0.00016402,2]
[399285778,1766243447859,-2000.0,0.00016402,2]
[399285779,1766243447875,-1193.041,0.00016402,2]
[399285780,1766243447884,-1600.0,0.00016414,2]
[399285781,1766243447894,-1000.0,0.00016427,2]
[399285782,1766243447903,-500.0,0.00016438,2]
[399285783,1766243447913,-173.15074804,0.00016438,2]
[399285784,1766243447923,-545.19111589,0.00016438,2]
[399285785,1766243447937,-600.0,0.00016438,2]
[399285786,1766243447947,-292.5,0.00016438,2]
[399285787,1766243447957,-151.0,0.00016438,2]
[399285788,1766243447966,-151.0,0.00016438,2]
[399285789,1766243447977,-12881.25,0.00016438,2]
[399285790,1766243447986,-152.573655,0.00016438,2]
[399285791,1766243447996,-152.573655,0.00016438,2]
[399285792,1766243448005,-152.573655,0.00016438,2]
[399285793,1766243448014,-152.573655,0.00016438,2]
[399285794,1766243448023,-152.573655,0.00016438,2]
[399285795,1766243448033,-152.573655,0.00016438,2]
[399285796,1766243448043,-152.573655,0.00016438,2]
[399285797,1766243448053,-152.573655,0.00016438,2]
[399285798,1766243448063,-152.573655,0.00016438,2]
[399285799,1766243448072,-152.573655,0.00016438,2]
[399285800,1766243448081,-152.573655,0.00016438,2]
[399285801,1766243448091,-152.573655,0.00016438,2]
[399285802,1766243448101,-464.6,0.00016438,2]
[399285803,1766243448111,-464.6,0.00016438,2]
[399285804,1766243448120,-464.6,0.00016438,2]
[399285805,1766243448130,-464.6,0.00016438,2]
[399285806,1766243448139,-464.6,0.00016438,2]
[399285807,1766243448149,-464.6,0.00016438,2]
[399285808,1766243448158,-178.41,0.00016438,2]
[399285809,1766243448168,-178.41,0.00016438,2]
[399285810,1766243448177,-3263.29207984,0.00016441,2]
[399285811,1766243448188,-429.37,0.00016474,2]
[399285812,1766243448198,-153.20553774,0.00016494,2]
[399285813,1766243448208,-176.64834012,0.00016628,2]
[399285814,1766243448218,-151.47,0.00016646,2]
[399285815,1766243448227,-5029.6175892,0.0001666,2]
[399285816,1766243448237,-5534.0,0.00016693,2]
[399285817,1766243448247,-250.0,0.00016712,2]
[399285818,1766243448256,-150.0,0.00016712,2]
[399285819,1766243448267,-150.0,0.00016712,2]
[399285820,1766243448276,-167.75,0.00016712,2]
[399285821,1766243448285,-715.0,0.00016725,2]
[399285822,1766243448295,-731.0,0.00016737,2]
[399285823,1766243448304,-715.0,0.00016769,2]
[399285824,1766243448313,-166.66,0.00016798,2]
[399285825,1766243448323,-168.0,0.00016809,2]
[399285826,1766243448333,-150.0,0.00016849,2]
[399285827,1766243448342,-150.0,0.00016849,2]
[399285828,1766243448352,-200.0,0.00016864,2]
[399285829,1766243448361,-715.0,0.00016883,2]
[399285830,1766243448370,-317.09904632,0.000169,2]
[399285831,1766243448380,-10000.0,0.000169,2]
[399285832,1766243448390,-796.01109257,0.000169,2]
[399285833,1766243448403,-243.45574049,0.000169,2]
[399285834,1766243448412,-228.90994048,0.000169,2]
[399285835,1766243448422,-2266.66036589,0.000169,2]
[399285836,1766243456888,500.0,0.00010075,2]
[399285837,1766243456947,500.0,0.00010075,2]
[399285838,1766243457005,357.85664855,0.00010075,2]
[399285842,1766243464504,500.0,0.00010075,2]
[399285843,1766243464579,262.92955629,0.00010075,2]
[399285844,1766243465488,7879.22379516,9.976e-05,2]
[399285845,1766243465516,10000.01,9.976e-05,2]
[399285846,1766243465543,10000.01,9.976e-05,2]
[399285847,1766243465573,5612.16300484,9.976e-05,2]
[399285848,1766243466618,357.78863738,0.00010365,2]
[399285849,1766243467541,500.0,0.00010365,2]
[399285850,1766243467601,475.65320888,0.00010365,2]
[399285853,1766243481164,3054.4051489,9.976e-05,2]
[399285854,1766243481202,10000.01,9.976e-05,2]
[399285855,1766243481236,10000.01,9.976e-05,2]
[399285856,1766243481270,10000.01,9.976e-05,2]
[399285857,1766243481304,10000.01,9.976e-05,2]
[399285858,1766243481335,10000.01,9.976e-05,2]
[399285859,1766243481367,10000.01,9.976e-05,2]
[399285860,1766243481400,936945.5348511,9.976e-05,2]
[399285871,1766243491518,18475.62,0.00022,30]
[399285873,1766243502089,1000.0,9.976e-05,2]
[399285879,1766243541275,500.0,0.000176,30]
[399285880,1766243541605,500.0,0.000176,30]
[399285881,1766243541963,500.0,0.00017,30]
[399285882,1766243542338,665.20669713,0.00017,30]
[399285884,1766243547443,500.0,0.000176,30]
[399285885,1766243547777,500.0,0.000176,30]
[399285886,1766243548148,500.0,0.000176,30]
[399285887,1766243548487,500.0,0.000176,30]
[399285888,1766243548902,500.0,0.00017,30]
[399285889,1766243549274,500.0,0.00017,30]
[399285890,1766243549607,500.0,0.00017,30]
[399285891,1766243549966,747.78668635,0.00017,30]
[399285905,1766243608584,10000.01,9.976e-05,2]
[399285906,1766243608615,10000.01,9.976e-05,2]
[399285907,1766243608645,10000.01,9.976e-05,2]
[399285908,1766243608675,10000.01,9.976e-05,2]
[399285909,1766243608706,10000.01,9.976e-05,2]
[399285910,1766243608739,10000.01,9.976e-05,2]
[399285911,1766243608770,10000.01,9.976e-05,2]
[399285912,1766243608798,10000.01,9.976e-05,2]
[399285913,1766243608828,10000.01,9.976e-05,2]
[399285915,1766243608857,10000.01,9.976e-05,2]
[399285916,1766243608888,899999.9,9.976e-05,2]
[399286015,1766243905487,3024.4744279,0.000226,120]
[399286076,1766244466027,893.0,0.00013,15]
[399286077,1766244466062,3445.48323305,0.00013,15]
[399286079,1766244516739,10000.01,0.0001,2]
[399286080,1766244516769,142.21304144,0.0001,2]
[399286086,1766244583266,1000.0,0.0001,2]
[399286103,1766244617880,1000.0,9.5e-05,2]
[399286111,1766244632008,-151.53,0.0001322,2]
[399286113,1766244632018,-150.67,0.0001322,2]
[399286115,1766244632028,-151.02,0.0001322,2]
[399286117,1766244632039,-152.28,0.0001322,2]
[399286118,1766244632051,-52.35661962,0.0001322,2]
[399286119,1766244632063,-99.95338038,0.0001322,2]
[399286120,1766244632072,-152.76,0.0001322,2]
[399286121,1766244632082,-91.86661962,0.0001322,2]
[399286122,1766244632093,-58.37338038,0.0001322,2]
[399286123,1766244632102,-151.03,0.0001322,2]
[399286124,1766244632112,-150.06,0.0001322,2]
[399286125,1766244632122,-151.54,0.0001322,2]
[399286126,1766244632132,-195.0,0.0001322,2]
[399286127,1766244632143,-10.51930298,0.0001322,2]
[399286128,1766244632156,-239.48069702,0.0001322,2]
[399286129,1766244632167,-250.0,0.00013249,2]
[399286130,1766244632179,-195.0,0.00013321,2]
[399286131,1766244632188,-163.49753845,0.00013698,2]
[399286132,1766244632200,-333.01820855,0.00013698,2]
[399286133,1766244632211,-557.00771592,0.00013699,2]
[399286134,1766244632228,-442.99228408,0.00013699,2]
[399286135,1766244632240,-164.57269625,0.00014292,2]
[399286136,1766244632252,-2.08730375,0.00014292,2]
[399286137,1766244632263,-475.41887819,0.00014424,2]
[399286138,1766244632275,-569.31587421,0.00014424,2]
[399286139,1766244632289,-1100.7542825,0.00014424,2]
[399286140,1766244632301,-519.99902324,0.00014424,2]
[399286141,1766244632313,-7421.11194186,0.00014424,2]
[399286142,1766244632322,-500.0,0.00014428,2]
[399286143,1766244632332,-2740.02,0.00014462,2]
[399286144,1766244632343,-163.8,0.000145,2]
[399286145,1766244632353,-150.99,0.000145,2]
[399286146,1766244632364,-1849.95,0.000145,2]
[399286147,1766244632374,-300.0,0.00014533,2]
[399286148,1766244632383,-2398.0,0.00014533,2]
[399286149,1766244632392,-250.0,0.00014542,2]
[399286150,1766244632402,-300.0,0.00014542,2]
[399286152,1766244632413,-300.0,0.00014542,2]
[399286154,1766244632423,-300.0,0.00014542,2]
[399286156,1766244632432,-300.0,0.00014542,2]
[399286158,1766244632442,-300.0,0.00014542,2]
[399286160,1766244632451,-300.0,0.00014542,2]
[399286162,1766244632461,-300.0,0.00014542,2]
[399286164,1766244632470,-300.0,0.00014542,2]
[399286166,1766244632481,-195.0,0.00014542,2]
[399286168,1766244632491,-2500.0,0.00014542,2]
[399286170,1766244632500,-2500.0,0.00014542,2]
[399286172,1766244632509,-2500.0,0.00014542,2]
[399286174,1766244632519,-2500.0,0.00014542,2]
[399286176,1766244632528,-2500.0,0.00014542,2]
[399286178,1766244632538,-300.0,0.00014542,2]
[399286180,1766244632547,-300.0,0.00014542,2]
[399286182,1766244632556,-159.6,0.00014593,2]
[399286184,1766244632566,-166.66,0.00014593,2]
[399286185,1766244632575,-1647.512,0.00014593,2]
[399286187,1766244632586,-23702.55,0.00014771,2]
[399286188,1766244632595,-4576.71,0.00014877,2]
[399286189,1766244632604,-166.66,0.00014893,2]
[399286190,1766244632614,-166.66,0.00015194,2]
[399286191,1766244632623,-150.0,0.00015288,2]
[399286192,1766244632632,-150.0,0.00015288,2]
[399286193,1766244632645,-150.0,0.00015288,2]
[399286194,1766244632654,-150.0,0.00015288,2]
[399286195,1766244632663,-99.10707614,0.00015288,2]
[399286196,1766244632675,-51.49547028,0.00015288,2]
[399286197,1766244632684,-150.0,0.00015288,2]
[399286198,1766244632693,-150.0,0.00015288,2]
[399286199,1766244632702,-56.76198292,0.00015288,2]
[399286200,1766244632713,-93.23801708,0.00015288,2]
[399286201,1766244632722,-150.0,0.00015288,2]
[399286202,1766244632731,-80.09123742,0.00015288,2]
[399286203,1766244632744,-69.90876259,0.00015288,2]
[399286204,1766244632753,-150.0,0.00015288,2]
[399286205,1766244632762,-150.0,0.00015288,2]
[399286206,1766244632771,-150.0,0.00015288,2]
[399286207,1766244632780,-150.0,0.00015288,2]
[399286208,1766244632789,-150.0,0.00015327,2]
[399286209,1766244632799,-150.0,0.00015339,2]
[399286210,1766244632809,-150.0,0.00015351,2]
[399286211,1766244632818,-150.0,0.00015351,2]
[399286212,1766244632827,-150.0,0.00015358,2]
[399286213,1766244633134,-150.0,0.00015365,2]
[399286214,1766244633144,-150.0,0.00015367,2]
[399286215,1766244633153,-150.0,0.00015377,2]
[399286216,1766244633162,-150.0,0.00015391,2]
[399286217,1766244633171,-150.0,0.00015406,2]
[399286218,1766244633182,-150.0,0.00015413,2]
[399286219,1766244633192,-150.0,0.00015413,2]
[399286220,1766244633202,-150.0,0.00015429,2]
[399286221,1766244633211,-150.0,0.00015442,2]
[399286222,1766244633220,-150.0,0.00015442,2]
[399286223,1766244633230,-7.29384146,0.00015446,2]
[399286224,1766244633495,-142.70615854,0.00015446,2]
[399286225,1766244633504,-150.0,0.00015466,2]
[399286226,1766244633514,-150.0,0.00015476,2]
[399286227,1766244633523,-150.0,0.00015476,2]
[399286228,1766244633534,-150.0,0.00015485,2]
[399286229,1766244633544,-150.0,0.00015494,2]
[399286230,1766244633553,-166.66,0.00015495,2]
[399286231,1766244633563,-150.0,0.000155,2]
[399286232,1766244633572,-150.0,0.000155,2]
[399286233,1766244633582,-150.0,0.000155,2]
[399286234,1766244633591,-150.0,0.00015519,2]
[399286235,1766244633601,-150.0,0.00015525,2]
[399286236,1766244633612,-150.0,0.00015539,2]
[399286237,1766244633622,-150.0,0.00015539,2]
[399286238,1766244633632,-150.0,0.00015545,2]
[399286239,1766244633642,-150.0,0.00015556,2]
[399286240,1766244633651,-150.0,0.00015564,2]
[399286241,1766244633661,-150.0,0.00015571,2]
[399286242,1766244633670,-150.0,0.00015571,2]
[399286243,1766244633679,-2475.77681674,0.00015596,2]
[399286244,1766244633696,-7254.18002101,0.00015596,2]
[399286245,1766244633705,-150.0,0.00015597,2]
[399286246,1766244633716,-150.0,0.00015597,2]
[399286247,1766244633727,-150.0,0.00015602,2]
[399286248,1766244633737,-150.0,0.00015602,2]
[399286249,1766244633747,-150.0,0.00015604,2]
[399286250,1766244633757,-378.42,0.00015616,2]
[399286251,1766244633767,-387.73660686,0.00015622,2]
[399286252,1766244633776,-2778.13574195,0.00015622,2]
[399286253,1766244633785,-176.3250794,0.00015622,2]
[399286254,1766244633794,-150.0,0.00015627,2]
[399286255,1766244633804,-150.0,0.00015642,2]
[399286256,1766244633813,-150.0,0.00015643,2]
[399286257,1766244633822,-150.0,0.00015645,2]
[399286258,1766244633831,-150.0,0.00015648,2]
[399286259,1766244633840,-233.47929647,0.00015651,2]
[399286260,1766244633849,-223.0720104,0.00015651,2]
[399286261,1766244633859,-150.0,0.00015665,2]
[399286262,1766244633868,-150.0,0.00015665,2]
[399286263,1766244633877,-150.0,0.00015674,2]
[399286264,1766244633887,-150.0,0.00015683,2]
[399286265,1766244633896,-152.74,0.00015688,2]
[399286266,1766244633905,-150.0,0.00015699,2]
[399286267,1766244633914,-200.0,0.00015712,2]
[399286268,1766244633923,-151.0,0.00015712,2]
[399286269,1766244633934,-721.12765535,0.00015712,2]
[399286270,1766244633944,-151.0,0.00015712,2]
[399286271,1766244633953,-151.0,0.00015712,2]
[399286272,1766244633963,-151.0,0.00015712,2]
[399286273,1766244633973,-151.0,0.00015712,2]
[399286274,1766244633983,-151.0,0.00015712,2]
[399286275,1766244633997,-151.0,0.00015712,2]
[399286276,1766244634007,-151.0,0.00015712,2]
[399286277,1766244634020,-151.0,0.00015712,2]
[399286278,1766244634030,-151.0,0.00015712,2]
[399286279,1766244634039,-151.0,0.00015712,2]
[399286280,1766244634050,-574.12855637,0.00015712,2]
[399286281,1766244634060,-317.87808237,0.00015712,2]
[399286282,1766244634070,-150.0,0.00015712,2]
[399286283,1766244634079,-150.0,0.00015712,2]
[399286284,1766244634089,-150.0,0.00015712,2]
[399286285,1766244634099,-250.45204617,0.0001572,2]
[399286286,1766244634110,-6610.0,0.00015721,2]
[399286287,1766244634121,-120447.9147856,0.00015722,2]
[399286288,1766244634135,-100102.74075301,0.00015722,2]
[399286289,1766244634146,-1013.08682692,0.00015722,2]
[399286290,1766244634157,-3274.61395881,0.00015722,2]
[399286291,1766244638259,-5001.02299194,0.00015722,2]
[399286296,1766244640260,-440.83,0.00015722,2]
[399286300,1766244644132,-604.94872248,0.00015722,2]
[399286301,1766244644144,-4122.76392,0.00015722,2]
[399286306,1766244646233,-1235.93486426,0.00015722,2]
[399286307,1766244646244,-8845.07552215,0.00015722,2]
[399286308,1766244646468,-384.79023,0.00015722,2]
[399286309,1766244646566,-506.90891425,0.00015722,2]
[399286411,1766245101492,756.67176162,0.00022,30]
[399286553,1766245645906,999.0,0.00013907,3]
[399286589,1766245832295,-500.0,0.00012426,2]
[399286590,1766245832306,-1001.47727649,0.00012974,2]
[399286591,1766245832316,-200.0,0.00013164,2]
[399286592,1766245832327,-207.4,0.00013164,2]
[399286593,1766245832338,-215.0738,0.00013164,2]
[399286594,1766245832348,-223.0315306,0.00013164,2]
[399286595,1766245832358,-231.28369723,0.00013164,2]
[399286596,1766245832372,-239.84119403,0.00013164,2]
[399286597,1766245832383,-248.71531821,0.00013164,2]
[399286598,1766245832393,-257.91778498,0.00013164,2]
[399286599,1766245832404,-267.46074303,0.00013164,2]
[399286600,1766245832415,-250.0,0.00013669,2]
[399286601,1766245832426,-300.0,0.00013937,2]
[399286602,1766245832436,-302.26771089,0.00013937,2]
[399286603,1766245832447,-300.0,0.00013973,2]
[399286605,1766245832457,-300.0,0.00013973,2]
[399286607,1766245832467,-300.0,0.00013973,2]
[399286609,1766245832479,-370.40341196,0.00013973,2]
[399286611,1766245832489,-1318.009,0.00014144,2]
[399286613,1766245832500,-2500.0,0.00014162,2]
[399286615,1766245832510,-1003.6070944,0.0001424,2]
[399286618,1766245832524,-403.56,0.0001424,2]
[399286664,1766245840369,-1092.8329056,0.0001424,2]
[399286665,1766245840380,-2500.0,0.0001424,2]
[399286666,1766245840390,-889.39485221,0.00014323,2]
[399286667,1766245840402,-596.298,0.00014323,2]
[399286668,1766245840567,-1263.12714779,0.00014323,2]
[399286669,1766245840577,-2748.82,0.00014323,2]
[399286670,1766245840587,-353.48359848,0.00014323,2]
[399286671,1766245840757,-769.5826,0.00014323,2]
[399286672,1766245840769,-1625.75380152,0.00014323,2]
[399286673,1766245840780,-2748.82,0.00014323,2]
[399286674,1766245840790,-2748.82,0.00014323,2]
[399286675,1766245840801,-151.0,0.0001433,2]
[399286676,1766245840811,-151.0,0.0001433,2]
[399286677,1766245840821,-1000000.0,0.00014333,2]
[399286678,1766245840831,-643.86357928,0.00014379,2]
[399286679,1766245840842,-153.78508436,0.00014424,2]
[399286680,1766245840852,-1785.47061055,0.00014424,2]
[399286681,1766245840861,-500.0,0.00014424,2]
[399286682,1766245840871,-500.0,0.00014424,2]
[399286683,1766245840881,-152.47844731,0.00014424,2]
[399286684,1766245840890,-500.0,0.00014424,2]
[399286685,1766245840901,-858.52169391,0.00014424,2]
[399286686,1766245840911,-500.0,0.00014424,2]
[399286687,1766245840921,-200.0,0.00014424,2]
[399286688,1766245840932,-500.0,0.00014424,2]
[399286689,1766245840942,-500.0,0.00014424,2]
[399286690,1766245840952,-620.0,0.00014424,2]
[399286691,1766245840962,-500.0,0.00014424,2]
[399286692,1766245840972,-407.21754602,0.00014424,2]
[399286693,1766245840984,-9552.16786547,0.00014424,2]
[399286694,1766245840994,-5000.0,0.00014424,2]
[399286695,1766245841004,-574.12855637,0.00014424,2]
[399286696,1766245841014,-5000.0,0.00014424,2]
[399286697,1766245841024,-151.0,0.00014424,2]
[399286698,1766245841034,-5000.0,0.00014424,2]
[399286699,1766245841044,-151.0,0.00014424,2]
[399286700,1766245841054,-151.0,0.00014424,2]
[399286701,1766245841065,-5000.0,0.00014424,2]
[399286702,1766245841074,-151.0,0.00014424,2]
[399286703,1766245841085,-1722.43969839,0.00014424,2]
[399286704,1766245841096,-151.0,0.00014424,2]
[399286705,1766245841106,-151.0,0.00014424,2]
[399286706,1766245841116,-151.0,0.00014424,2]
[399286707,1766245841127,-151.0,0.00014424,2]
[399286708,1766245841138,-151.0,0.00014424,2]
[399286709,1766245841148,-500.0,0.00014424,2]
[399286710,1766245841158,-151.0,0.00014424,2]
[399286711,1766245841632,-500.0,0.00014424,2]
[399286712,1766245841666,-151.0,0.00014424,2]
[399286713,1766245841693,-1000.0,0.00014424,2]
[399286714,1766245841705,-500.0,0.00014424,2]
[399286715,1766245841715,-151.0,0.00014424,2]
[399286716,1766245841725,-1000.0,0.00014424,2]
[399286717,1766245841735,-500.0,0.00014424,2]
[399286718,1766245841744,-1000.0,0.00014424,2]
[399286719,1766245841754,-531.95847037,0.00014424,2]
[399286720,1766245841764,-1000.0,0.00014424,2]
[399286721,1766245841773,-1000.0,0.00014424,2]
[399286722,1766245841783,-1000.0,0.00014424,2]
[399286723,1766245841793,-500.0,0.00014424,2]
[399286724,1766245841803,-1000.0,0.00014424,2]
[399286725,1766245841812,-500.0,0.00014424,2]
[399286726,1766245841822,-500.0,0.00014424,2]
[399286727,1766245841832,-970.77463272,0.00014424,2]
[399286728,1766245841842,-209.40437685,0.00014424,2]
[399286729,1766245841851,-500.0,0.00014424,2]
[399286730,1766245841861,-500.0,0.00014424,2]
[399286731,1766245841871,-1000.0,0.00014424,2]
[399286732,1766245841880,-500.0,0.00014424,2]
[399286733,1766245841890,-1000.0,0.00014424,2]
[399286734,1766245841900,-500.0,0.00014424,2]
[399286735,1766245841910,-1000.0,0.00014424,2]
[399286736,1766245841920,-500.0,0.00014424,2]
[399286737,1766245841930,-1000.0,0.00014424,2]
[399286738,1766245841940,-500.0,0.00014424,2]
[399286739,1766245841950,-1000.0,0.00014424,2]
[399286740,1766245841960,-500.0,0.00014424,2]
[399286741,1766245841969,-1000.0,0.00014424,2]
[399286742,1766245841979,-1000.0,0.00014424,2]
[399286743,1766245841988,-1199.0,0.00014424,2]
[399286744,1766245841998,-500.0,0.00014424,2]
[399286745,1766245842008,-300.0,0.00014424,2]
[399286746,1766245842017,-1000.0,0.00014424,2]
[399286747,1766245842027,-267.97401367,0.00014424,2]
[399286748,1766245842036,-792.0,0.00014424,2]
[399286749,1766245842046,-277.35679052,0.00014424,2]
[399286750,1766245842055,-200.12511126,0.00014427,2]
[399286751,1766245842065,-2618.55413896,0.00014427,2]
[399286752,1766245842075,-500.0,0.00014432,2]
[399286753,1766245842084,-500.0,0.00014432,2]
[399286754,1766245842094,-500.0,0.00014432,2]
[399286755,1766245842103,-500.0,0.00014432,2]
[399286756,1766245842116,-7779.0,0.00014433,2]
[399286757,1766245842129,-9905.5980765,0.00014479,2]
[399286758,1766245842139,-250.0,0.00014481,2]
[399286759,1766245842148,-300.0,0.00014481,2]
[399286760,1766245842158,-2500.0,0.00014481,2]
[399286761,1766245842167,-246.50257659,0.00014481,2]
[399286762,1766245842176,-300.0,0.00014481,2]
[399286763,1766245842187,-10272.10520533,0.00014534,2]
[399286764,1766245842202,-10652.17309792,0.00014589,2]
[399286765,1766245842212,-11046.30350255,0.00014644,2]
[399286766,1766245842221,-4180.81569567,0.00014699,2]
[399286767,1766245842230,-2618.55413895,0.00014702,2]
[399286768,1766245842240,-643.86357922,0.00014739,2]
[399286769,1766245842257,-200.12511124,0.00014839,2]
[399286770,1766245842266,-595.37131296,0.00014972,2]
[399286771,1766245842276,-1199.0,0.00014972,2]
[399286772,1766245842285,-2618.55413895,0.00014977,2]
[399286773,1766245842295,-150.0,0.00014983,2]
[399286774,1766245842304,-643.86357922,0.00015099,2]
[399286775,1766245842314,-500.0,0.00015224,2]
[399286776,1766245842323,-200.12511124,0.00015251,2]
[399286777,1766245842332,-2618.55413895,0.00015251,2]
[399286778,1766245842342,-150.0,0.00015288,2]
[399286779,1766245842351,-150.0,0.00015288,2]
[399286780,1766245842360,-150.0,0.00015288,2]
[399286781,1766245842369,-150.0,0.00015288,2]
[399286782,1766245842379,-150.0,0.00015288,2]
[399286783,1766245842388,-150.0,0.00015288,2]
[399286784,1766245842398,-150.0,0.00015288,2]
[399286785,1766245842407,-150.0,0.00015288,2]
[399286786,1766245842417,-150.0,0.00015288,2]
[399286787,1766245842426,-150.0,0.00015288,2]
[399286788,1766245842435,-150.0,0.00015288,2]
[399286789,1766245842445,-150.0,0.00015341,2]
[399286790,1766245842454,-150.0,0.00015358,2]
[399286791,1766245842463,-150.0,0.00015373,2]
[399286792,1766245842472,-150.0,0.00015373,2]
[399286793,1766245842482,-150.0,0.00015388,2]
[399286794,1766245842491,-150.0,0.00015394,2]
[399286795,1766245842501,-150.0,0.00015394,2]